Cogmind - Beta 15 @@@ ROGUE MODE // 2025.10.21 @ 06:15:33 // Winter2022/Polymind Player: War__Prophet Result: Self-destructed Performance ------------- Evolutions (4) 2000 Regions Visited (10) 2000 Robots Destroyed (11) 55 Value Destroyed (393) 393 Prototype IDs (0) 0 Alien Tech Used (0) 0 Bonus (4012) 4012 TOTAL SCORE: 8410 Bonus ------- Polymind Skill 2965 Follower Combat Kills 347 Entered Garrisons 200 Used RIF Installer 500 Cogmind --------- Core Integrity 760/850 Matter 0/0 Energy 100/100 System Corruption 0% Temperature Cool (0) Movement Core (50) Location -6/Lower Caves Parts ------- > --- POWER (1) -------- (None) > --- PROPULSION (4) --- (None) > --- UTILITY (3) ------ (None) > --- WEAPON (0) ------- (None) > --- INVENTORY (0) ---- (None) Peak State ------------ > --- POWER ------------ Improved Ion Engine > --- PROPULSION ------- Compact Wheel Compact Wheel Compact Wheel Compact Wheel > --- UTILITY ---------- Medium Storage Unit High-powered Tractor Beam Field Recycling Unit > --- WEAPON ----------- (None) > --- INVENTORY -------- Light Deuterium Engine Energy Well Core Analyzer Core Analyzer Improved Trap Extractor Improved Trap Extractor [Rating: 14] Favorites ----------- Power Improved Ion Engine Engine Improved Ion Engine Power Core Light Nuclear Core Propulsion Compact Wheel Treads Light Treads Leg Aluminum Leg Wheel Compact Wheel Flight Unit Flight Unit Utility Heat Sink Device Heat Sink Storage Medium Storage Unit Processor Terrain Scan Processor Protection Light Armor Plating Weapon Beam Rifle Energy Gun Beam Rifle Ballistic Gun Heavy Assault Rifle Special Weapon Welding Torch Build | -11 -10 -9 -8 -8 -8 -7 -6 -6 -6 -6 ------- Run | Yrd Mat Mat Mat Gar Mat Fac Fac Was Fac Low Slots Evolved . | . . . . . . . . . . . Power . | . . . . . . . . . . . Propulsion . | . . . . . . . . . . . Utility . | . . . . . . . . . . . Weapon . | . . . . . . . . . . . Parts Attached . | . . . . . . . . . . . Power . | . . . . . . . . . . . Engine . | . . . . . . . . . . . Core . | . . . . . . . . . . . Reactor . | . . . . . . . . . . . Propulsion . | . . . . . . . . . . . Treads . | . . . . . . . . . . . Leg . | . . . . . . . . . . . Wheel . | . . . . . . . . . . . Hover . | . . . . . . . . . . . Flight . | . . . . . . . . . . . Utility . | . . . . . . . . . . . Device . | . . . . . . . . . . . Storage . | . . . . . . . . . . . Processor . | . . . . . . . . . . . Hackware . | . . . . . . . . . . . Protection . | . . . . . . . . . . . Artifact . | . . . . . . . . . . . Weapon . | . . . . . . . . . . . Energy Gun . | . . . . . . . . . . . Energy Cannon . | . . . . . . . . . . . Ballistic Gun . | . . . . . . . . . . . Ballistic Cannon . | . . . . . . . . . . . Launcher . | . . . . . . . . . . . Special Weapon . | . . . . . . . . . . . Impact Weapon . | . . . . . . . . . . . Slashing Weapon . | . . . . . . . . . . . Piercing Weapon . | . . . . . . . . . . . Special Melee Weapon . | . . . . . . . . . . . Unidentified Prototypes . | . . . . . . . . . . . Parts Lost 18 | . . 4 1 13 . . . . . . Power 3 | . . 1 . 2 . . . . . . Propulsion 6 | . . 2 . 4 . . . . . . Utility 3 | . . . . 3 . . . . . . Weapon 6 | . . 1 1 4 . . . . . . Highest Loss Streak 10 | . . 3 1 10 . . . . . . To Critical Strikes . | . . . . . . . . . . . Average Backups . | . . . . . . . . . 3 . Power . | . . . . . . . . . . . Propulsion . | . . . . . . . . . . . Utility . | . . . . . . . . . 2 . Weapon . | . . . . . . . . . . . Tool/Special . | . . . . . . . . . . . Unused Backups 6 | . . . . . . . . . 6 . Power 1 | . . . . . . . . . 1 . Propulsion . | . . . . . . . . . . . Utility 5 | . . . . . . . . . 5 . Weapon . | . . . . . . . . . . . Tool/Special . | . . . . . . . . . . . Average Slot Usage (%) 63 | . 16 85 61 84 . 66 88 . 61 . Engine 7 | . 4 14 11 . . 9 12 . 7 . Core 2 | . . . . 15 . . . . . . Treads 3 | . . 14 . 1 . . . . . . Leg 4 | . . . . 30 . . . . . . Wheel 10 | . . . 12 . . 18 24 . 30 . Flight 4 | . 8 12 11 . . . . . . . Device 13 | . . 14 12 17 . 18 24 . 15 . Storage 1 | . . . . . . . . . 7 . Processor 1 | . . . . . . 9 12 . . . Protection 1 | . . 6 . . . . . . . . Energy Gun 4 | . . 6 . 16 . . . . . . Ballistic Gun 4 | . 4 15 5 1 . . . . . . Special Weapon 2 | . . . 6 . . 9 12 . . . Peak Build Rating 14 | . 4 11 10 11 . 8 8 . 14 . Average Rating 6 | . 1 7 4 8 . 5 7 . 8 . On Entrance 2 | . . 4 . 10 . . 8 . . . Naked Turns 451 | . 38 33 32 15 65 50 8 89 112 9 Heaviest Build 26 | . 4 18 9 18 . 6 6 . 26 . Greatest Support 64 | 3 8 40 20 40 3 20 20 3 64 3 Greatest Overweight (x) . | . . . . . . . . . . . Average Overweight (x) . | . . . . . . . . . . . Largest Inventory Capacity 6 | . . 1 1 1 . . . . 6 . Average Capacity 1 | . . . . . . . . . 3 . Most Carried 6 | . . . . . . . . . 6 . Average Carried . | . . . . . . . . . 3 . Final Capacity 1 | . . . 1 . . . . . . . Final Carried . | . . . . . . . . . . . Class Distribution -------------------- 30% | Cogmind 15% | Sentry 12% | Builder 12% | Recycler 12% | Grunt 11% | Swarmer 3% | Tunneler Dominant Class ---------------- Cogmind | -10/Materials Sentry | -9/Materials Tunneler | -8/Materials Grunt | -8/Garrison Cogmind | -8/Materials Builder | -7/Factory Builder | -6/Factory Cogmind | -6/Waste Recycler | -6/Factory Cogmind | -6/Lower Caves Resources | -11 -10 -9 -8 -8 -8 -7 -6 -6 -6 -6 ----------- Run | Yrd Mat Mat Mat Gar Mat Fac Fac Was Fac Low Matter Collected 106 | . 4 102 . . . . . . . . Remotely . | . . . . . . . . . . . Salvage Created 234 | . 16 218 . . . . . . . . Parts 28 | . 2 21 . 5 . . . . . . Haulers Intercepted . | . . . . . . . . . . . Recyclers Shooed . | . . . . . . . . . . . Parts Field Recycled . | . . . . . . . . . . . Retrieved Matter . | . . . . . . . . . . . Parts Self-Destructed . | . . . . . . . . . . . Prevented . | . . . . . . . . . . . Kills | -11 -10 -9 -8 -8 -8 -7 -6 -6 -6 -6 ------- Run | Yrd Mat Mat Mat Gar Mat Fac Fac Was Fac Low Combat Hostiles Destroyed 11 | . 2 8 . 1 . . . . . . Guns 11 | . 2 8 . 1 . . . . . . Classes Destroyed 4 | . 1 3 . . . . . . . . Swarmer 2 | . 2 . . . . . . . . . Grunt 4 | . . 4 . . . . . . . . Brawler 2 | . . 2 . . . . . . . . Sentry 3 | . . 2 . 1 . . . . . . Best Kill Streak 8 | . 2 8 . 1 . . . . . . Combat Bots Only 8 | . 2 8 . 1 . . . . . . Max Kills in Single Turn 1 | . 1 1 . 1 . . . . . . Gunslinging . | . . . . . . . . . . . Exploded . | . . . . . . . . . . . Melee . | . . . . . . . . . . . Uniques/NPCs Destroyed . | . . . . . . . . . . . Combat | -11 -10 -9 -8 -8 -8 -7 -6 -6 -6 -6 -------- Run | Yrd Mat Mat Mat Gar Mat Fac Fac Was Fac Low Hostile Shots Fired 302 | . 9 87 43 142 8 11 2 . . . Missed 101 | . 3 23 26 38 5 5 1 . . . Hits 201 | . 6 64 17 104 3 6 1 . . . Melee 2 | . . 2 . . . . . . . . Projectile 199 | . 6 62 17 104 3 6 1 . . . Critical Strikes 9 | . . 1 1 7 . . . . . . Damage Taken 2865 | . 49 811 178 1625 47 65 21 . 69 . Core 947 | . 30 249 30 436 47 65 21 . 69 . Absorbed by Shields . | . . . . . . . . . . . Ignored by Resistances 13 | . . 13 . . . . . . . . Core Remaining (%) 64 | 100 88 37 . . 6 90 . . . . Volleys Fired 67 | . 2 43 . 22 . . . . . . Largest 2 | . 1 2 . 2 . . . . . . Hottest 79 | . 20 79 . 79 . . . . . . Shots Fired 96 | . 2 68 . 26 . . . . . . Gun 96 | . 2 68 . 26 . . . . . . Cannon . | . . . . . . . . . . . Launcher . | . . . . . . . . . . . Special . | . . . . . . . . . . . Kinetic 56 | . 2 43 . 11 . . . . . . Thermal 40 | . . 25 . 15 . . . . . . Explosive . | . . . . . . . . . . . Electromagnetic . | . . . . . . . . . . . Robot Hit Streak 15 | . 2 15 . 10 . . . . . . Robot Miss Streak 2 | . . 2 . 1 . . . . . . Penetration Max . | . . . . . . . . . . . Secondary Targets 3 | . . 3 . . . . . . . . Max Gunslinging Chain 1 | . . 1 . . . . . . . . Shots Hit Robots 61 | . 2 37 . 22 . . . . . . Core Hits 23 | . 2 15 . 6 . . . . . . Critical Kills . | . . . . . . . . . . . Critical Parts Destroyed . | . . . . . . . . . . . Critical Strikes 3 | . . 2 . 1 . . . . . . Burn 3 | . . 2 . 1 . . . . . . Melee Attacks . | . . . . . . . . . . . Impact . | . . . . . . . . . . . Slashing . | . . . . . . . . . . . Piercing . | . . . . . . . . . . . Sneak Attacks . | . . . . . . . . . . . Combat Hostiles . | . . . . . . . . . . . Follow-up Attacks . | . . . . . . . . . . . Damage Inflicted 822 | . 17 451 3 346 . 3 2 . . . Guns 800 | . 17 451 . 332 . . . . . . Cannons . | . . . . . . . . . . . Explosions . | . . . . . . . . . . . Melee . | . . . . . . . . . . . Ramming 22 | . . . 3 14 . 3 2 . . . Kinetic 369 | . 17 228 . 124 . . . . . . Thermal 431 | . . 223 . 208 . . . . . . Explosive . | . . . . . . . . . . . Electromagnetic . | . . . . . . . . . . . Impact . | . . . . . . . . . . . Slashing . | . . . . . . . . . . . Piercing . | . . . . . . . . . . . Highest Corruption 1 | . . 1 . . . . . . . . Average Corruption 1 | . . 1 . . . . . . . . Corruption Purged . | . . . . . . . . . . . Corruption Blocked . | . . . . . . . . . . . Effects 1 | . . 1 . . . . . . . . Misfires 1 | . . 1 . . . . . . . . Overload Shots . | . . . . . . . . . . . Overflow Damage . | . . . . . . . . . . . Projectiles . | . . . . . . . . . . . Explosions . | . . . . . . . . . . . Melee . | . . . . . . . . . . . Knockbacks 1 | . . . . 1 . . . . . . Impact 1 | . . . . 1 . . . . . . Kinetic . | . . . . . . . . . . . Secondary . | . . . . . . . . . . . Self-Inflicted Damage 9 | . . . 1 6 . 1 1 . . . Shots . | . . . . . . . . . . . Rammed 9 | . . . 1 5 . 1 2 . . . Targets Rammed 9 | . . . 1 5 . 1 2 . . . Kicked . | . . . . . . . . . . . Crushed . | . . . . . . . . . . . Highest Temperature 269 | . 15 158 4 269 . . . . . . Average Temperature 105 | . 7 86 3 157 . . . . . . Received Heat Transfer 975 | . 6 354 18 549 9 30 9 . . . Effects 1 | . . . . 1 . . . . . . Interference 1 | . . . . 1 . . . . . . Siege Activations . | . . . . . . . . . . . Martial Activations . | . . . . . . . . . . . Shielding Activations . | . . . . . . . . . . . Robots Disrupted . | . . . . . . . . . . . Combat Hostiles . | . . . . . . . . . . . Robots Corrupted . | . . . . . . . . . . . Combat Hostiles . | . . . . . . . . . . . Parts Fried . | . . . . . . . . . . . Impact Corruptions . | . . . . . . . . . . . Robots Melted . | . . . . . . . . . . . Combat Hostiles . | . . . . . . . . . . . Parts Melted 3 | . . 3 . . . . . . . . Heat Transferred 1143 | . . 703 . 440 . . . . . . Parts Sabotaged . | . . . . . . . . . . . Parts Stolen . | . . . . . . . . . . . Parts Stripped . | . . . . . . . . . . . Power Chain Reactions . | . . . . . . . . . . . Alert | -11 -10 -9 -8 -8 -8 -7 -6 -6 -6 -6 ------- Run | Yrd Mat Mat Mat Gar Mat Fac Fac Was Fac Low Maximum Alert Level 1 | . . 1 . . . . . . 1 . Low Security (%) 92 | 100 100 86 100 100 100 100 100 100 80 . Level 1 7 | . . 13 . . . . . . 19 . Level 2 . | . . . . . . . . . . . Level 3 . | . . . . . . . . . . . Level 4 . | . . . . . . . . . . . Level 5 . | . . . . . . . . . . . High Security . | . . . . . . . . . . . Max Security . | . . . . . . . . . . . Peak Influence 240 | . 30 225 56 37 . . . . 240 . Initial 56 | . . 12 56 17 . . . . . . Average 60 | . 7 115 33 11 . . . . 135 . Influence Increases 904 | . 40 305 49 50 . . . . 460 . Destroy 0b10 Robot/C 380 | . 40 160 . 20 . . . . 160 . Destroy 0b10 Robot/NC 5 | . . . . . . . . . 5 . Destroy Leader 92 | . . 40 . . . . . . 52 . Allied During Kill 169 | . . . . . . . . . 169 . Successful Hack 4 | . . . 4 . . . . . . . Disable Machine 45 | . . 15 . . . . . . 30 . Destroy Structure 29 | . . . . . . . . . 29 . Partial Spotted 30 | . . . 15 . . . . . 15 . Lose Combat Pursuer 150 | . . 90 30 30 . . . . . . Influence Decreases 762 | . 10 200 157 77 . . . . 234 84 Entered New Map 191 | . . 18 79 10 . . . . . 84 Time Decay 365 | . 10 152 60 . . . . . 143 . Lost Part 107 | . . 30 10 67 . . . . . . Lost Ally 90 | . . . . . . . . . 90 . Miscellaneous 9 | . . . 8 . . . . . 1 . Squads Dispatched 4 | . 1 1 1 . 1 . . . . . Investigation 1 | . 1 . . . . . . . . . Extermination . | . . . . . . . . . . . Reinforcement 3 | . . 1 1 . 1 . . . . . Assault . | . . . . . . . . . . . Garrison . | . . . . . . . . . . . Intercept . | . . . . . . . . . . . Searches Triggered . | . . . . . . . . . . . Construction Impeded . | . . . . . . . . . . . Haulers Reinforced . | . . . . . . . . . . . Active Scanning Responses . | . . . . . . . . . . . Cargo Convoy Interrupts . | . . . . . . . . . . . Stealth | -11 -10 -9 -8 -8 -8 -7 -6 -6 -6 -6 --------- Run | Yrd Mat Mat Mat Gar Mat Fac Fac Was Fac Low Distress Signals 1 | . 1 . . . . . . . . . Communications Jammed . | . . . . . . . . . . . Distress Signals . | . . . . . . . . . . . Times Spotted 85 | . 11 25 15 19 1 6 4 . 4 . Peak Tracking Total 11 | . 8 11 9 8 1 5 4 . 2 . Tactical Retreats 5 | . . 2 1 2 . . . . . . Traps | -11 -10 -9 -8 -8 -8 -7 -6 -6 -6 -6 ------- Run | Yrd Mat Mat Mat Gar Mat Fac Fac Was Fac Low Traps Triggered 4 | . 1 1 . 1 . . 1 . . . Indirectly . | . . . . . . . . . . . Trap Hack Attempts . | . . . . . . . . . . . Triggered . | . . . . . . . . . . . Disarmed . | . . . . . . . . . . . Reprogrammed . | . . . . . . . . . . . Reused . | . . . . . . . . . . . Traps Extracted . | . . . . . . . . . . . Installed . | . . . . . . . . . . . Triggered . | . . . . . . . . . . . Machines | -11 -10 -9 -8 -8 -8 -7 -6 -6 -6 -6 ---------- Run | Yrd Mat Mat Mat Gar Mat Fac Fac Was Fac Low Machines Disabled 3 | . . 1 . . . . . . 2 . Max in Single Turn 1 | . . 1 . . . . . . . . Garrison Relay 1 | . . . . 1 . . . . . . Machines Repaired . | . . . . . . . . . . . Machines Dismantled . | . . . . . . . . . . . Machines Sabotaged . | . . . . . . . . . . . Overloaded Fab Kills . | . . . . . . . . . . . Hacking | -11 -10 -9 -8 -8 -8 -7 -6 -6 -6 -6 --------- Run | Yrd Mat Mat Mat Gar Mat Fac Fac Was Fac Low Machines Accessed 1 | . . . 1 . . . . . . . Terminals . | . . . . . . . . . . . Fabricators . | . . . . . . . . . . . Repair Stations . | . . . . . . . . . . . Recycling Units . | . . . . . . . . . . . Scanalyzers . | . . . . . . . . . . . Garrison Access 1 | . . . 1 . . . . . . . Total Hacks 2 | . . . 2 . . . . . . . Successful 1 | . . . 1 . . . . . . . Failed 1 | . . . 1 . . . . . . . Catastrophic . | . . . . . . . . . . . Database Lockouts . | . . . . . . . . . . . Manual . | . . . . . . . . . . . Terminals . | . . . . . . . . . . . Fabricators . | . . . . . . . . . . . Repair Stations . | . . . . . . . . . . . Recycling Units . | . . . . . . . . . . . Scanalyzers . | . . . . . . . . . . . Garrison Access 2 | . . . 2 . . . . . . . Terminal Hacks . | . . . . . . . . . . . Fabricator Hacks . | . . . . . . . . . . . Repair Station Hacks . | . . . . . . . . . . . Recycling Unit Hacks . | . . . . . . . . . . . Scanalyzer . | . . . . . . . . . . . Garrison Access Hacks 1 | . . . 1 . . . . . . . Unlock Access 1 | . . . 1 . . . . . . . Unauthorized Hacks . | . . . . . . . . . . . Terminals . | . . . . . . . . . . . Fabricators . | . . . . . . . . . . . Repair Stations . | . . . . . . . . . . . Recycling Units . | . . . . . . . . . . . Scanalyzers . | . . . . . . . . . . . Garrison Access . | . . . . . . . . . . . Data Cores Recovered . | . . . . . . . . . . . Used . | . . . . . . . . . . . Hacking Detections 1 | . . . 1 . . . . . . . Full Trace Events . | . . . . . . . . . . . Feedback Events . | . . . . . . . . . . . Feedback Blocked . | . . . . . . . . . . . Robot Schematics Acquired . | . . . . . . . . . . . Robots Built . | . . . . . . . . . . . Authchips . | . . . . . . . . . . . Time . | . . . . . . . . . . . Total Robot Build Rating . | . . . . . . . . . . . Part Schematics Acquired . | . . . . . . . . . . . Parts Built . | . . . . . . . . . . . Authchips . | . . . . . . . . . . . Time . | . . . . . . . . . . . Total Part Build Rating . | . . . . . . . . . . . Parts Repaired . | . . . . . . . . . . . Time . | . . . . . . . . . . . Parts Recycled . | . . . . . . . . . . . Recycled Matter . | . . . . . . . . . . . Retrieved Matter . | . . . . . . . . . . . Retrieved Components . | . . . . . . . . . . . Parts Scanalyzed . | . . . . . . . . . . . Part Schematics Acquired . | . . . . . . . . . . . Parts Damaged . | . . . . . . . . . . . Bothacking | -11 -10 -9 -8 -8 -8 -7 -6 -6 -6 -6 ------------ Run | Yrd Mat Mat Mat Gar Mat Fac Fac Was Fac Low Used RIF Installer 1 | . . . . 1 . . . . . . Robots Hacked 8 | . 1 1 2 2 . 1 . . 1 . Non-combat 2 | . . . . . . 1 . . 1 . Combat 6 | . 1 1 2 2 . . . . . . Robot Hacks Applied 10 | . 1 1 4 2 . 1 . . 1 . map_walls 1 | . . . . . . 1 . . . . find_recycling 1 | . . . . . . . . . 1 . find_shortcuts 6 | . 1 1 2 2 . . . . . . find_garrison 2 | . . . 2 . . . . . . . Relay Couplers Released 5 | . . . . 5 . . . . . . Machine Destruction 5 | . . . . 5 . . . . . . Fabnet Peak Effective % . | . . . . . . . . . . . Robots Rewired . | . . . . . . . . . . . Allies Hacked . | . . . . . . . . . . . Hacks Repelled . | . . . . . . . . . . . Allies | -11 -10 -9 -8 -8 -8 -7 -6 -6 -6 -6 -------- Run | Yrd Mat Mat Mat Gar Mat Fac Fac Was Fac Low Total Allies 20 | . . . . . . . . 20 . . Largest Group 20 | . . . . . . . . 20 11 3 Highest-Rated Group 709 | . . . . . . . . 709 331 115 Highest-Rated Ally 50 | . . . . . . . . 50 50 50 Total Orders . | . . . . . . . . . . . Ally Attacks 81 | . . . . . . . . . 81 . Total Damage 1392 | . . . . . . . . . 1392 . Kills 11 | . . . . . . . . . 11 . Allies Corrupted 1 | . . . . . . . . . 1 . Allies Melted . | . . . . . . . . . . . Intel | -11 -10 -9 -8 -8 -8 -7 -6 -6 -6 -6 ------- Run | Yrd Mat Mat Mat Gar Mat Fac Fac Was Fac Low Active Infowar (turns) 247 | . . . 56 . . 120 71 . . . Terrain 247 | . . . 56 . . 120 71 . . . Structural 191 | . . . . . . 120 71 . . . Seismic 48 | . . . 48 . . . . . . . Robot Analysis Total 6 | . 1 1 2 . . 1 . . 1 . Derelict Logs Recovered . | . . . . . . . . . . . Drone Launches . | . . . . . . . . . . . Drone Recoveries . | . . . . . . . . . . . Exploration | -11 -10 -9 -8 -8 -8 -7 -6 -6 -6 -6 ------------- Run | Yrd Mat Mat Mat Gar Mat Fac Fac Was Fac Low Turns Passed 1486 | 13 53 355 121 230 65 170 79 89 302 9 Spaces Moved 1702 | 20 107 309 186 152 128 248 101 105 330 16 Core 723 | 20 75 66 36 22 128 97 13 105 145 16 Treads 24 | . . 23 . 1 . . . . . . Legs 132 | . . . 3 129 . . . . . . Wheels 493 | . . . 69 . . 151 88 . 185 . Hover . | . . . . . . . . . . . Flight 330 | . 32 220 78 . . . . . . . Fastest Speed 37 | 50 37 37 37 50 50 50 50 50 50 50 Average Speed 65 | 50 46 49 56 110 50 68 76 50 78 50 Slowest Speed 160 | 50 50 160 120 160 50 80 80 50 100 50 Overloaded Moves . | . . . . . . . . . . . Propulsion Burnouts . | . . . . . . . . . . . Robots Hopped 10 | . . 5 5 . . . . . . . Potential Cave-ins . | . . . . . . . . . . . Cave-ins Triggered . | . . . . . . . . . . . Exploration Rate (%) 23 | 4 27 40 31 31 19 12 6 71 11 5 Regions Visited 10 Branch Regions 1 Pre-discovered Areas . | . . . . . . . . . . . Known Exits Taken 1 | . . . 1 . . . . . . . Unknown Exits Taken 6 | 1 1 1 . . 1 1 . . 1 . Scrap Searched . | . . . . . . . . . . . Spaces Dug . | . . . . . . . . . . . Terrain Destroyed . | . . . . . . . . . . . Melee . | . . . . . . . . . . . Projectile . | . . . . . . . . . . . AOE . | . . . . . . . . . . . Terrain Rammed . | . . . . . . . . . . . Walls Destroyed . | . . . . . . . . . . . Machines Disabled . | . . . . . . . . . . . Actions | -11 -10 -9 -8 -8 -8 -7 -6 -6 -6 -6 --------- Run | Yrd Mat Mat Mat Gar Mat Fac Fac Was Fac Low Total 1962 | 22 108 441 196 187 128 248 103 140 373 16 Wait 189 | 3 . 95 15 . 1 . . 36 39 . Move 1672 | 19 106 298 175 150 127 247 101 104 329 16 Hop 10 | . . 5 5 . . . . . . . Pick Up 5 | . . . . . . . . . 5 . Fast Attach . | . . . . . . . . . . . Attach . | . . . . . . . . . . . Detach . | . . . . . . . . . . . Swap . | . . . . . . . . . . . Drop . | . . . . . . . . . . . Fire 67 | . 2 43 . 22 . . . . . . Melee . | . . . . . . . . . . . Ram 9 | . . . 1 5 . 1 2 . . . Kick . | . . . . . . . . . . . Crush . | . . . . . . . . . . . Escape Stasis . | . . . . . . . . . . . Rewire 10 | . . . . 10 . . . . . . Trap . | . . . . . . . . . . . Miscellaneous . | . . . . . . . . . . . Route ------- -11/Scrapyard -10/Materials (discovered 2 exits: [*Mat] / [*Min]) -9/Materials (discovered 2 exits: *Mat / [*Min]) -8/Materials (discovered 2 exits: [*Fac] / Gar) -8/Garrison -8/Materials (discovered 2 exits: [*Fac] / [*Sto]) -7/Factory -6/Factory -6/Waste -6/Factory -6/Lower Caves History --------- Turn | Location | Event 3 | -11/Scrapyard | Discovered new exit (range 15) 14 | -11/Scrapyard | Entered Materials 35 | -10/Materials | Discovered new exit (range 9) 62 | -10/Materials | Discovered new exit (range 16) 67 | -10/Materials | Entered another Materials area 99 | -9/Materials | Discovered new exit (range 8) 216 | -9/Materials | Lost 3 parts (1p1n1w) 225 | -9/Materials | Core integrity fell below 50% 261 | -9/Materials | Destroyed 8 combat bots 415 | -9/Materials | Discovered new exit (range 16) 422 | -9/Materials | Entered another Materials area 534 | -8/Materials | Discovered new exit (range 9) 536 | -8/Materials | Identified exit to Garrison 543 | -8/Materials | Entered Garrison 591 | -8/Garrison | Triggered checkpoint 619 | -8/Garrison | Discovered new exit (range 10) 647 | -8/Garrison | Triggered checkpoint 657 | -8/Garrison | Triggered checkpoint 692 | -8/Garrison | Garrison Relay disabled 712 | -8/Garrison | Core integrity fell below 50% 738 | -8/Garrison | Lost 10 parts (1p3n3u3w) 753 | -8/Garrison | Installed Relay Interface Framework 766 | -8/Garrison | Core integrity fell below 20% 773 | -8/Garrison | Entered Materials 782 | -8/Materials | Discovered new exit (range 15) 794 | -8/Materials | Lost 3 parts (1p1n1w) 834 | -8/Materials | Discovered new exit (range 10) 838 | -8/Materials | Entered Factory 1000 | -7/Factory | Discovered new exit (range 11) 1008 | -7/Factory | Entered another Factory area 1087 | -6/Factory | Sucked down chute 1087 | -6/Factory | Entered Waste 1088 | -6/Waste | Joined by Warlord forces that had cleared the area 1156 | -6/Waste | Discovered new exit (range 12) 1176 | -6/Waste | Entered Factory 1176 | -6/Factory | Accompanied by 11 allies 1400 | -6/Factory | Spotted B-75 Beast 1432 | -6/Factory | Lost 3 allies 1469 | -6/Factory | Discovered new exit (range 11) 1478 | -6/Factory | Entered Lower Caves 1478 | -6/Lower Caves | Accompanied by 3 allies 1482 | -6/Lower Caves | Lost 3 allies 1487 | -6/Lower Caves | Self-destructed Last Messages --------------- 01387_ N9-SLI(s) suffers critical hit (Burn). 01392_ N9-SLI(s) destroyed. 01393_ G-50 Soldier destroyed. 01393_ 50-2LR(s) destroyed. 01394_ Released control of R-10 Processor. 01394_ Acquired 6 Protomatter. 01397_ R-10 Processor reactivates. 01398_ G-50 Soldier destroyed. 01401_ TR-7XS(s) destroyed. 01405_ G-67 Veteran suffers critical hit (Destroy). 01406_ G-67 Veteran destroyed. 01444_ UN-A4D(s) destroyed. 01447_ JW-8HK(s) destroyed. 01451_ XT-5E8(s) destroyed. 01457_ Fabricator disabled. 01464_ Y-54 Guardian destroyed. 01469_ EXIT=FOUND 01471_ K-01 Serf collects debris. LOCATION=UNKNOWN GOAL=ESCAPE Map ----- +----------------------------------------------------+ | ?????????????????????????????????????????????????? | | ?????????????????????????????????????????????????? | | ?????????????????????????????????????????????????? | | ?????????????????????????????????????????????????? | | ?????????????????????????????????????????????????? | | ?????????????????????????????????????????????????? | | ?????????????????????????????????????????????????? | | ?????????????????????????????????????????????????? | | ?????????????????????????????????????????????????? | | ?????????????????????????????????????????????????? | | ?????????????????????????????????????????????????? | | ?????????????????????????????????????????????????? | | ?????????????????????????????????????????????????? | | ?????????????????????????????????????????????????? | | ?????????????????????????????????????????????????? | | ?????????????????????????????????????????????????? | | ?????????????????????????????????????????????????? | | ?????????????????????????????????????????????????? | | ?????????????????????????????????????????????????? | | ?????????????????????????????????????????????????? | | ????????????????????####?????????????????????????? | | ???????????????????## ##????????????????????????? | | ???????????????????# ##???????????????????????? | | ???????????????????# d ##??????????????????????? | | ?????????????????### d ##?????????????????????? | | ???????????????### @ ##????????????????????? | | ???????#???????# ## #####????????????????? | | ???????# ?????# ## ???????????????? | | ???????# ???## ???????????????? | | ??????## ### #######??????????????? | | ??????# ##????????????????????? | | ????# ##????????????????????? | | ????# #### ##???????????????????? | | ???? #### ##??????????????????? | | ???? #??????????????????? | | ???????## #???????????????? | | ????????##### ### ## ##???????????????? | | ????????????############??###???#????????????????? | | ?????????????????????????????????????????????????? | | ?????????????????????????????????????????????????? | | ?????????????????????????????????????????????????? | | ?????????????????????????????????????????????????? | | ?????????????????????????????????????????????????? | | ?????????????????????????????????????????????????? | | ?????????????????????????????????????????????????? | | ?????????????????????????????????????????????????? | | ?????????????????????????????????????????????????? | | ?????????????????????????????????????????????????? | | ?????????????????????????????????????????????????? | | ?????????????????????????????????????????????????? | +----------------------------------------------------+ Best States ------------- Heat Dissipation 40 Energy Generation 19 Energy Capacity 215 Matter Stores 100 Matter Capacity 100 Sight Range 16 Terrain Scan Range 16 Terrain Scan Density 85 Armor Coverage 150 Resistance: EX 50 Resistance: I 25 Evasion (%) 62 Recoil Reduction 2 Item Schematics ----------------- None Robot Schematics ------------------ None Fabricated ------------ Nothing Repaired ---------- Nothing Alien Tech Used ----------------- None Achievements -------------- None Challenges ------------ None Polymind | -11 -10 -9 -8 -8 -8 -7 -6 -6 -6 -6 ---------- Run | Yrd Mat Mat Mat Gar Mat Fac Fac Was Fac Low Hosts 9 | . 1 1 3 2 . 1 . . 1 . Combat Hostiles 6 | . 1 1 2 2 . . . . . . Allies . | . . . . . . . . . . . Unique Host Classes 6 | . 1 1 2 . . 1 . . 1 . Average Host Suspicion 69 | . 100 90 74 67 . 62 39 . 46 . Unsuspicious Activity 116 | . . 95 17 . . 2 . . 2 . Returns to Shadow . | . . . . . . . . . . . Fuzzy Dispatches . | . . . . . . . . . . . Protomatter Created 317 | . 3 65 . 26 . . . 147 76 . Used 133 | . 6 23 41 53 . 5 . . 5 . Decayed 231 | . . 14 . . . . . 147 70 . Highest Spend 30 | . 6 23 30 30 . 5 . . 5 . Top 5 Hosts by Kills: Y-45 Defender (-9/Materials: 8) S-10 Pest (-10/Materials: 2) G-47 Trooper (-8/Materials: 1) Game ------ Seed ColdVisualCompressor Manual? 0 Play Time 00:10:36 Cumulative 37.6 hours Start 2025.10.21 @ 06:01:56 End 2025.10.21 @ 06:15:33 Sessions 2 Manual Loads 0 Difficulty Rogue Special Mode Winter2022/Polymind Game No. 149 Rogue 149 Adventurer 0 Explorer 0 Win Type - Total 0 Types 0/0/0/0/0/0/0/0/0/0 Lore% 12 Gallery% 32 Achievement% 31 Wizard Run 0 Options --------- Layout 1 ASCII 0 Keyboard 1 Movement Vi Keybinds 0 Fullscreen 1 Font 16/SmallcapsGlow Map View 55x38 Zoom Use 0% Tactical HUD 1 Map Filters NONE Filters NONE Steam 1 RUN: d6d2f104-529d-4fcb-85c2-4a4316b0de5e